fUST/lending_fUST_20240714
["ID","MTS","AMOUNT","RATE_DAILY","PERIOD"]
[331949777,1720890641523,-203.24580907,0.00034602,2]
[331949778,1720890641533,-210.00930085,0.00034602,4]
[331949779,1720890641543,-659.83739468,0.00034602,4]
[331949780,1720890641552,-246.93834316,0.00034623,4]
[331949781,1720890641561,-217.28013774,0.00034623,4]
[331949782,1720890641570,-805.3919486,0.00034623,4]
[331949783,1720890641580,-155.15481871,0.0003463,4]
[331949784,1720890641589,-26908.5422195,0.00034632,4]
[331949785,1720890641603,-394.59024886,0.00034634,4]
[331949786,1720890641613,-616.24153097,0.00034634,4]
[331949787,1720890641622,-154.54409492,0.00034634,4]
[331949788,1720890641635,-154.54409492,0.00034634,4]
[331949789,1720890641645,-245.64476671,0.00034634,4]
[331949790,1720890641657,-401.97424872,0.00034634,4]
[331949791,1720890641666,-154.79655598,0.00034642,4]
[331949792,1720890641677,-213.14595565,0.00034642,4]
[331949793,1720890641686,-155.65182733,0.00034642,4]
[331949794,1720890641696,-715.68357137,0.00034642,4]
[331949795,1720890641705,-235.77527736,0.00034669,4]
[331949796,1720890641714,-180.17298398,0.00034669,4]
[331949797,1720890641733,-154.54409492,0.00034669,4]
[331949798,1720890641743,-696.4299266,0.0003467,4]
[331949799,1720890641752,-2869.33941233,0.0003467,4]
[331949800,1720890641761,-215.1829908,0.00034672,4]
[331949801,1720890641771,-1558.69536058,0.00034672,4]
[331949802,1720890641780,-1276.79068585,0.0003468,4]
[331949803,1720890641789,-155.34433816,0.00034702,2]
[331949804,1720890641798,-154.65203293,0.00034702,2]
[331949805,1720890641807,-1500.0,0.00034762,4]
[331949806,1720890641816,-155.86895917,0.00034771,4]
[331949807,1720890641825,-154.54409492,0.00034771,4]
[331949808,1720890641834,-158.69421259,0.00034771,4]
[331949809,1720890641844,-1190.8128278,0.00034771,4]
[331949810,1720890641853,-185.31505735,0.00034803,15]
[331949811,1720890641862,-357.6031714,0.00034826,2]
[331949812,1720890641871,-1190.8128278,0.00034899,4]
[331949813,1720890641884,-317.30214599,0.00034899,4]
[331949814,1720890641893,-154.54409492,0.00034899,4]
[331949815,1720890641903,-280.41683606,0.00034989,4]
[331949816,1720890641912,-265.27946531,0.00034999,2]
[331949817,1720890641921,-500.0,0.00035,4]
[331949818,1720890641930,-242.92788372,0.00035,10]
[331949819,1720890641939,-1000.0,0.00035,35]
[331949820,1720890641948,-269.29425179,0.00035,120]
[331949821,1720890641958,-5242.04436651,0.00035024,2]
[331949822,1720890641968,-5242.04436651,0.00035116,2]
[331949823,1720890641978,-820.43120441,0.00035259,4]
[331949824,1720890641987,-357.6031714,0.00035317,2]
[331949825,1720890641996,-357.6031714,0.00035474,2]
[331949826,1720890642006,-155.50250572,0.0003558,4]
[331949827,1720890642015,-5242.04436651,0.00035584,2]
[331949828,1720890642025,-26908.5422195,0.00035631,4]
[331949829,1720890642034,-5242.04436651,0.00035675,2]
[331949830,1720890642043,-357.6031714,0.00035846,2]
[331949831,1720890642052,-150.0,0.00035935,2]
[331949832,1720890642061,-5242.04436652,0.00035937,2]
[331949833,1720890642071,-1000.0,0.00036,36]
[331949834,1720890642080,-150.112233,0.00036,6]
[331949835,1720890642089,-357.6031715,0.00036058,2]
[331949836,1720890642099,-1000.0,0.00036164,2]
[331949837,1720890642108,-220.0,0.000363,13]
[331949838,1720890642227,-153.0,0.00036492,2]
[331949839,1720890642236,-153.0,0.00036492,2]
[331949840,1720890642244,-153.0,0.00036492,2]
[331949841,1720890642250,-153.0,0.00036492,2]
[331949842,1720890642257,-153.0,0.00036492,2]
[331949843,1720890642264,-153.0,0.00036493,2]
[331949844,1720890642271,-153.0,0.00036493,2]
[331949845,1720890642278,-150.56336624,0.00036495,2]
[331949846,1720890642285,-91511.06897472,0.000365,7]
[331949847,1720890642292,-153.0,0.00036503,2]
[331949848,1720890642299,-153.0,0.00036503,2]
[331949849,1720890642306,-153.0,0.00036503,2]
[331949850,1720890642313,-153.0,0.00036503,2]
[331949851,1720890642320,-153.0,0.00036503,2]
[331949852,1720890642329,-153.0,0.00036503,2]
[331949853,1720890642336,-153.0,0.00036503,2]
[331949854,1720890642342,-153.0,0.00036513,2]
[331949855,1720890642348,-153.0,0.00036513,2]
[331949856,1720890642355,-153.0,0.00036513,2]
[331949857,1720890642362,-153.0,0.00036513,2]
[331949858,1720890642369,-153.0,0.00036513,2]
[331949859,1720890642376,-153.0,0.00036514,2]
[331949860,1720890642385,-153.0,0.00036514,2]
[331949861,1720890642394,-153.0,0.00036523,2]
[331949862,1720890642404,-153.0,0.00036523,2]
[331949863,1720890642414,-153.0,0.00036523,2]
[331949864,1720890642424,-153.0,0.00036523,2]
[331949865,1720890642433,-153.0,0.00036523,2]
[331949866,1720890642443,-153.0,0.00036524,2]
[331949867,1720890642453,-390.8,0.000367,62]
[331949868,1720890642462,-500.5,0.000367,62]
[331949869,1720890642471,-150.112233,0.000367,7]
[331949870,1720890642480,-185.69687838,0.00036799,2]
[331949871,1720890642490,-2658.83828861,0.000368,30]
[331949872,1720890642499,-1940.17760531,0.000368,2]
[331949873,1720890642508,-1672.54421719,0.000368,30]
[331949874,1720890642517,-185.31505735,0.00036803,23]
[331949876,1720890642527,-26908.5422195,0.00036879,4]
[331949878,1720890642537,-4648.80369759,0.0003688,4]
[331949910,1720890644699,273.37336231,0.000203,10]
[331949934,1720890646285,-1005.83246207,0.00033157,2]
[331949935,1720890646295,-1486.4984693,0.00034517,4]
[331949936,1720890646305,-2184.94629937,0.0003458,14]
[331949937,1720890646315,-380.99386021,0.00034602,4]
[331949938,1720890646324,-162.3420948,0.00034634,4]
[331949939,1720890646334,-235.77527736,0.00034642,4]
[331949940,1720890646345,-696.4299266,0.00034669,4]
[331949941,1720890646356,-471.57812926,0.00034989,4]
[331949942,1720890646390,-591.04294711,0.00034989,4]
[331949943,1720890646400,-32.95064817,0.00036483,2]
[331949944,1720890646423,-120.04935183,0.00036483,2]
[331949945,1720890646432,-153.0,0.00036483,2]
[331949946,1720890646442,-526.56704613,0.00036732,4]
[331949947,1720890646452,-49168.28074151,0.0003688,4]
[331949948,1720890646463,-26908.5422195,0.00036889,4]
[331949949,1720890646472,-500.0,0.00036889,2]
[331949950,1720890646482,-26908.5422195,0.0003689,4]
[331949951,1720890646493,-157.53891168,0.00036899,10]
[331949952,1720890646503,-55196.64477662,0.00036899,2]
[331949953,1720890646512,-151.0,0.00036899,2]
[331949954,1720890646522,-151.0,0.00036899,7]
[331949955,1720890646533,-458.36,0.00036899,2]
[331949956,1720890646544,-151.0,0.00036899,7]
[331949957,1720890646555,-151.0,0.00036899,7]
[331949958,1720890646564,-6170.04777488,0.000369,5]
[331949959,1720890646574,-50042.27927401,0.000369,2]
[331949960,1720890649394,4490.45309691,0.00024606,2]
[331949961,1720890652839,273.37336231,0.000203,10]
[331949962,1720890660476,428.44271624,0.00024606,2]
[331949963,1720890661601,2121.20832974,0.00024606,2]
[331949964,1720890665008,667.80307677,0.00024606,2]
[331949965,1720890665576,1567.90780933,0.00024606,2]
[331949966,1720890697008,273.37336231,0.000203,10]
[331949967,1720890704897,273.37336231,0.000203,10]
[331949968,1720890711079,1020.91344797,0.000203,2]
[331949969,1720890711101,5846.59511626,0.000203,2]
[331949970,1720890720257,273.37336231,0.000203,10]
[331949971,1720890728128,273.37336231,0.000203,10]
[331949972,1720890737698,273.37336231,0.000203,10]
[331949973,1720890746836,273.37336231,0.000203,10]
[331949974,1720890755297,546.74672462,0.000203,10]
[331949975,1720890763147,273.37336231,0.000203,10]
[331949976,1720890771879,273.37336231,0.000203,10]
[331949977,1720890779768,273.37336231,0.000203,10]
[331949978,1720890789101,273.37336231,0.000203,10]
[331949979,1720890797174,273.37336231,0.000203,10]
[331949980,1720890805966,273.37336231,0.000203,10]
[331949981,1720890814026,273.37336231,0.000203,10]
[331949982,1720890849470,9626.228118,0.00016255,2]
[331949983,1720890866141,273.37336231,0.000203,10]
[331949984,1720890874124,273.37336231,0.000203,10]
[331949985,1720890878874,16032.95521457,0.00016255,2]
[331949986,1720890897323,273.37336231,0.000203,10]
[331949987,1720890905435,546.74672462,0.000203,10]
[331949988,1720890913667,273.37336231,0.000203,10]
[331949990,1720890928975,546.74672462,0.000203,10]
[331949994,1720890945570,273.37336231,0.000203,10]
[331949995,1720890954019,273.37336231,0.000203,10]
[331950000,1720890963353,273.37336231,0.000203,10]
[331950001,1720890971764,273.37336231,0.000203,10]
[331950002,1720890980832,546.74672462,0.000203,10]
[331950004,1720890989245,273.37336231,0.000203,10]
[331950005,1720891002880,21263.30307476,0.00016255,2]
[331950006,1720891006310,273.37336231,0.000203,10]
[331950008,1720891014252,546.74672462,0.000203,10]
[331950009,1720891018870,21263.30307476,0.00016255,2]
[331950010,1720891029704,546.74672462,0.000203,10]
[331950011,1720891045623,273.37336231,0.000203,10]
[331950012,1720891049759,2423.89779899,0.00016255,2]
[331950013,1720891055847,3841.73788179,0.00016255,2]
[331950014,1720891056880,3134.02290683,0.00016255,4]
[331950015,1720891060964,273.37336231,0.000203,10]
[331950016,1720891064496,1021.4432238,0.00016255,2]
[331950017,1720891070030,546.74672462,0.000203,10]
[331950043,1720891086765,273.37336231,0.000203,10]
[331950044,1720891091875,1436.35994433,0.00016255,2]
[331950045,1720891095002,273.37336231,0.000203,10]
[331950058,1720891096778,1626.22431711,0.00016255,2]
[331950078,1720891103184,273.37336231,0.000203,10]
[331950079,1720891104101,2135.60833403,0.00016255,2]
[331950080,1720891111096,273.37336231,0.000203,10]
[331950081,1720891116627,1287.68811622,0.00016255,2]
[331950082,1720891119769,273.37336231,0.000203,10]
[331950083,1720891128281,273.37336231,0.000203,10]
[331950084,1720891136592,273.37336231,0.000203,10]
[331950085,1720891136620,1182.34109105,0.00016255,2]
[331950086,1720891144421,546.74672462,0.000203,10]
[331950088,1720891147313,790.89368684,0.00016255,2]
[331950089,1720891147431,1500.0,0.00016255,2]
[331950090,1720891150647,1160.1146898,0.00016255,2]
[331950091,1720891160282,273.37336231,0.000203,10]
[331950092,1720891173351,610.635225,0.00016255,2]
[331950093,1720891175117,716.93671603,0.00016255,2]
[331950094,1720891175960,273.37336231,0.000203,10]
[331950095,1720891184046,273.37336231,0.000203,10]
[331950096,1720891192732,273.37336231,0.000203,10]
[331950097,1720891200614,273.37336231,0.000203,10]
[331950098,1720891209555,273.37336231,0.000203,10]
[331950099,1720891211897,21263.30307476,0.00016255,2]
[331950100,1720891217396,273.37336231,0.000203,10]
[331950101,1720891220699,934.93879927,0.00016255,2]
[331950102,1720891225441,273.37336231,0.000203,10]
[331950103,1720891230848,6268.93609742,0.00016255,2]
[331950104,1720891233289,273.37336231,0.000203,10]
[331950105,1720891235013,662.60273561,0.00016255,2]
[331950106,1720891241448,273.37336231,0.000203,10]
[331950107,1720891249956,273.37336231,0.000203,10]
[331950108,1720891258185,273.37336231,0.000203,10]
[331950109,1720891265209,515.67232544,0.00016255,2]
[331950110,1720891266150,273.37336231,0.000203,10]
[331950111,1720891270031,518.34284537,0.00016255,2]
[331950112,1720891274271,273.37336231,0.000203,10]
[331950113,1720891274512,886.30497612,0.00016255,2]
[331950114,1720891278325,532.67305812,0.00016255,2]
[331950115,1720891282104,273.37336231,0.000203,10]
[331950116,1720891284783,1626.22431711,0.00016255,2]
[331950117,1720891288424,1436.35994433,0.00016255,2]
[331950118,1720891289527,886.30497612,0.00016255,2]
[331950119,1720891289906,599.44172174,0.00016255,2]
[331950120,1720891290472,273.37336231,0.000203,10]
[331950121,1720891296228,950.29706761,0.00016255,2]
[331950122,1720891306353,546.74672462,0.000203,10]
[331950123,1720891314418,273.37336231,0.000203,10]
[331950124,1720891318628,1287.68811622,0.00016255,2]
[331950125,1720891326826,789.35169197,0.00016255,2]
[331950126,1720891330940,546.74672462,0.000203,10]
[331950127,1720891338859,273.37336231,0.000203,10]
[331950128,1720891349585,182.82989065,0.00016255,2]
[331950129,1720891355171,546.74672462,0.000203,10]
[331950130,1720891363234,273.37336231,0.000203,10]
[331950131,1720891377614,2135.60833403,0.00016255,2]
[331950132,1720891379270,546.74672462,0.000203,10]
[331950133,1720891382670,154.54409492,0.00016255,2]
[331950134,1720891383865,391.91633005,0.00016255,2]
[331950135,1720891388218,1160.1146898,0.00016255,2]
[331950136,1720891395403,273.37336231,0.000203,10]
[331950137,1720891397666,156.30692249,0.00016255,2]
[331950138,1720891400388,21263.30307476,0.00016255,2]
[331950139,1720891411342,273.37336231,0.000203,10]
[331950140,1720891411536,283.56828739,0.00016255,2]
[331950141,1720891413641,156.30692249,0.00016255,2]
[331950142,1720891415850,158.35036999,0.00016255,2]
[331950143,1720891419209,546.74672462,0.000203,10]
[331950144,1720891425229,3134.02290683,0.00016255,4]
[331950145,1720891429441,154.54409492,0.00016255,2]
[331950146,1720891434806,273.37336231,0.000203,10]
[331950147,1720891438376,567.25229378,0.00016255,2]
[331950148,1720891439363,154.54409492,0.00016255,2]
[331950150,1720891450220,546.74672462,0.000203,10]
[331950151,1720891450655,2121.20832974,0.00016255,2]
[331950152,1720891453279,2423.89779899,0.00016255,2]
[331950153,1720891454396,154.54409492,0.00016255,2]
[331950154,1720891454514,458.65976805,0.00016255,2]
[331950157,1720891466432,1500.0,0.00016255,2]
[331950158,1720891470450,546.74672462,0.000203,10]
[331950159,1720891486360,546.74672462,0.000203,10]
[331950160,1720891495020,546.74672462,0.000203,10]
[331950161,1720891496410,158.64148985,0.00016255,2]
[331950163,1720891503877,273.37336231,0.000203,10]
[331950164,1720891508324,154.54409492,0.00016255,2]
[331950166,1720891519160,273.37336231,0.000203,10]
[331950167,1720891532148,-304.06237558,0.00018129,2]
[331950168,1720891534471,546.74672462,0.000203,10]
[331950171,1720891543029,273.37336231,0.000203,10]
[331950172,1720891558930,273.37336231,0.000203,10]
[331950173,1720891567374,273.37336231,0.000203,10]
[331950175,1720891575496,273.37336231,0.000203,10]
[331950176,1720891584302,273.37336231,0.000203,10]
[331950177,1720891592624,273.37336231,0.000203,10]
[331950178,1720891599520,402.79270453,0.00016255,2]
[331950179,1720891600470,273.37336231,0.000203,10]
[331950180,1720891604312,217.28013774,0.00016255,2]
[331950181,1720891609819,273.37336231,0.000203,10]
[331950182,1720891616153,201.09696769,0.00016255,2]
[331950183,1720891617820,280.41683606,0.00016255,2]
[331950184,1720891618295,273.37336231,0.000203,10]
[331950185,1720891627214,273.37336231,0.000203,10]
[331950186,1720891627527,160.15762601,0.00016255,2]
[331950187,1720891636332,273.37336231,0.000203,10]
[331950188,1720891641453,21263.30307476,0.00016255,2]
[331950190,1720891644608,416.83209821,0.00016255,2]
[331950191,1720891645077,273.37336231,0.000203,10]
[331950192,1720891653854,273.37336231,0.000203,10]
[331950193,1720891662661,273.37336231,0.000203,10]
[331950194,1720891671164,273.37336231,0.000203,10]
[331950195,1720891679288,546.74672462,0.000203,10]
[331950199,1720891695498,610.635225,0.00016255,2]
[331950200,1720891696372,273.37336231,0.000203,10]
[331950202,1720891704290,234.50857087,0.000203,10]
[331950203,1720891721519,180.17298398,0.00016255,2]
[331950204,1720891726852,160.83586881,0.00015,2]
[331950206,1720891731073,-770.76931188,0.00018075,2]
[331950208,1720891731140,-770.76931188,0.00018075,2]
[331950210,1720891731181,-770.76931188,0.00018075,2]
[331950212,1720891731245,-333.1299759,0.00018075,2]
[331950219,1720891741905,1436.35994433,0.00016255,2]
[331950220,1720891746566,155.15481871,0.00016255,2]
[331950221,1720891751140,-354.56208846,0.00018075,2]
[331950222,1720891751317,-168.22843342,0.00018129,2]
[331950223,1720891751345,-250.0,0.00018135,2]
[331950224,1720891751366,-2339.0745095,0.00018189,2]
[331950225,1720891751387,-154.54409492,0.00018798,2]
[331950226,1720891751408,-191.27347695,0.00018798,2]
[331950227,1720891751430,-300.0,0.00018898,2]
[331950228,1720891751451,-300.0,0.00018898,2]
[331950229,1720891751472,-4254.64060259,0.00018899,2]
[331950230,1720891751493,-1287.68811622,0.00018899,2]
[331950231,1720891751513,-905.07891066,0.00018899,2]
[331950232,1720891751534,-2135.60833403,0.00018899,2]
[331950233,1720891751554,-1016.25719604,0.00018899,2]
[331950234,1720891751574,-21263.30307476,0.00018899,2]
[331950235,1720891751595,-533.00851761,0.00018899,2]
[331950236,1720891751616,-1092.34100624,0.000189,2]
[331950237,1720891751639,-713.49426017,0.00019039,3]
[331950238,1720891751661,-250.0,0.00019041,2]
[331950239,1720891751681,-185.89247832,0.000191,2]
[331950240,1720891751706,-1626.22431711,0.00019164,2]
[331950241,1720891751726,-3134.02290683,0.00019164,4]
[331950242,1720891751748,-3134.02290683,0.00019164,4]
[331950243,1720891751768,-1160.1146898,0.00019164,2]
[331950244,1720891751789,-492.98180621,0.00019165,2]
[331950245,1720891751812,-200.87728103,0.00019165,2]
[331950246,1720891751834,-2121.20832974,0.00019165,2]
[331950247,1720891751856,-160.15762601,0.00019165,2]
[331950248,1720891751876,-161.848307,0.00019178,2]
[331950249,1720891751897,-242.9957298,0.000193,2]
[331950250,1720891751918,-500.0,0.000193,2]
[331950251,1720891751943,-248.89310166,0.000193,2]
[331950252,1720891751965,-24900.0,0.00019301,2]
[331950253,1720891751987,-1521.53180509,0.00019603,2]
[331950254,1720891752008,-6207.28576747,0.0002,2]
[331950255,1720891752034,-174.03089246,0.0002,2]
[331950256,1720891752055,-293.68788523,0.0002,2]
[331950257,1720891752075,-154.54409492,0.0002,2]
[331950258,1720891752097,-154.54409492,0.0002,2]
[331950259,1720891752119,-154.54409492,0.0002,2]
[331950260,1720891752140,-154.54409492,0.0002,2]
[331950261,1720891752162,-158.69421259,0.0002,2]
[331950262,1720891752183,-1551.64131705,0.0002,2]
[331950263,1720891752203,-1000.0,0.000203,2]
[331950264,1720891752226,-38.86479144,0.000203,10]
[331950265,1720891752246,-246.93834316,0.00020543,2]
[331950266,1720891752267,-420.0,0.00020788,2]
[331950267,1720891752289,-388.661241,0.00021096,2]
[331950268,1720891752312,-218.69,0.00022035,3]
[331950269,1720891752335,-493.2280173,0.0002243,2]
[331950270,1720891752355,-828.65736599,0.0002243,2]
[331950271,1720891752377,-154.63660398,0.00022579,2]
[331950272,1720891752399,-154.63660398,0.00022579,2]
[331950273,1720891752420,-155.65182733,0.00022579,2]
[331950274,1720891752441,-2138.35091494,0.00022767,2]
[331950275,1720891752462,-505.0,0.00022867,2]
[331950276,1720891752482,-500.0,0.0002293,2]
[331950277,1720891752502,-253.38799133,0.0002293,2]
[331950278,1720891752522,-211.94060622,0.0002293,2]
[331950279,1720891752543,-359.0969509,0.0002293,2]
[331950280,1720891752568,-500.0,0.0002293,2]
[331950281,1720891752589,-500.0,0.0002293,2]
[331950282,1720891752609,-177.4684035,0.0002293,2]
[331950283,1720891752630,-500.0,0.0002293,2]
[331950284,1720891752652,-241.3241935,0.0002293,2]
[331950285,1720891752673,-500.0,0.0002293,2]
[331950286,1720891752694,-500.0,0.0002293,2]
[331950287,1720891752714,-226.53895577,0.0002293,2]
[331950288,1720891752736,-277.81519644,0.0002293,2]
[331950289,1720891752756,-500.0,0.0002293,2]
[331950290,1720891752777,-500.0,0.0002293,2]
[331950291,1720891752798,-500.0,0.0002293,2]
[331950292,1720891752820,-500.0,0.0002293,2]
[331950293,1720891752840,-500.0,0.0002293,2]
[331950294,1720891752861,-500.0,0.0002293,2]
[331950295,1720891752882,-500.0,0.0002293,2]
[331950296,1720891752902,-500.0,0.0002293,2]
[331950297,1720891752923,-500.0,0.0002293,2]
[331950298,1720891752947,-500.0,0.0002293,2]
[331950299,1720891752969,-500.0,0.0002293,2]
[331950300,1720891752991,-3361.62063174,0.00022931,3]
[331950301,1720891755102,1640.24017386,0.0002,10]
[331950302,1720891755208,-28278.85840716,0.00022931,3]
[331950303,1720891755230,-3426.31459957,0.00022941,2]
[331950304,1720891755251,-391.91633005,0.00022941,2]
[331950305,1720891755272,-154.54409492,0.00022941,2]
[331950306,1720891755294,-500.2718385,0.00022941,2]
[331950307,1720891755315,-1500.0,0.00022942,2]
[331950308,1720891755337,-1500.0,0.00022942,2]
[331950309,1720891755360,-182.82989065,0.00022943,2]
[331950310,1720891755382,-203.02799735,0.00023453,2]
[331950311,1720891755403,-154.54409492,0.00023453,2]
[331950312,1720891755424,-156.30692249,0.00023453,2]
[331950313,1720891755446,-283.56828739,0.00023453,2]
[331950314,1720891755467,-297.44902666,0.00023455,2]
[331950315,1720891755489,-1092.34100624,0.000239,2]
[331950316,1720891755509,-458.65976805,0.00023966,2]
[331950317,1720891755530,-257.04469015,0.00023968,2]
[331950318,1720891755551,-1521.53180502,0.00024331,2]
[331950319,1720891755572,-155.34319849,0.00024606,2]
[331950320,1720891755595,-345.81993579,0.00024606,2]
[331950321,1720891755616,-656.77900135,0.00024606,2]
[331950322,1720891756300,-500.0,0.00024657,2]
[331950323,1720891756325,-200.0,0.00024657,2]
[331950324,1720891756348,-500.0,0.00024657,2]
[331950325,1720891756370,-210.54,0.00024657,2]
[331950327,1720891756390,-500.0,0.00024657,2]
[331950328,1720891756412,-545.7,0.00024657,2]
[331950329,1720891756435,-500.0,0.00024657,2]
[331950330,1720891756458,-310.05746639,0.00024657,2]
[331950332,1720891756480,-208.83589317,0.00024657,2]
[331950333,1720891756501,-528.47521967,0.00024657,2]
[331950334,1720891756521,-500.0,0.00024657,2]
[331950335,1720891756544,-502.50084884,0.00024657,2]
[331950336,1720891756567,-500.0,0.00024657,2]
[331950337,1720891756590,-500.0,0.00024657,2]
[331950338,1720891756614,-500.0,0.00024657,2]
[331950339,1720891756635,-243.73,0.00024657,2]
[331950340,1720891756656,-500.0,0.00024657,2]
[331950341,1720891756677,-500.0,0.00024657,2]
[331950342,1720891756699,-500.0,0.00024657,2]
[331950343,1720891756722,-500.0,0.00024657,2]
[331950344,1720891756747,-500.0,0.00024657,2]
[331950345,1720891756771,-500.0,0.00024657,2]
[331950346,1720891756792,-500.0,0.00024657,2]
[331950347,1720891756814,-500.0,0.00024657,2]
[331950348,1720891756836,-500.0,0.00024657,2]
[331950349,1720891756950,-500.0,0.00024657,2]
[331950350,1720891756972,-500.0,0.00024657,2]
[331950351,1720891756994,-503.38008836,0.00024657,2]
[331950352,1720891757017,-500.0,0.00024657,2]
[331950353,1720891757037,-500.0,0.00024657,2]
[331950354,1720891757059,-500.0,0.00024657,2]
[331950355,1720891757080,-500.0,0.00024657,2]
[331950356,1720891757102,-500.0,0.00024657,2]
[331950357,1720891757122,-500.0,0.00024657,2]
[331950358,1720891757143,-500.0,0.00024657,2]
[331950359,1720891757165,-500.0,0.00024657,2]
[331950360,1720891757187,-500.0,0.00024657,2]
[331950361,1720891757211,-500.0,0.00024657,2]
[331950362,1720891757234,-500.0,0.00024657,2]
[331950363,1720891757257,-500.0,0.00024657,2]
[331950364,1720891757278,-500.0,0.00024657,2]
[331950365,1720891757298,-500.0,0.00024657,2]
[331950366,1720891757322,-500.0,0.00024657,2]
[331950367,1720891757346,-500.0,0.00024657,2]
[331950368,1720891757369,-500.0,0.00024657,2]
[331950369,1720891757388,-1129.17,0.00024657,2]
[331950370,1720891757411,-500.0,0.00024657,2]
[331950371,1720891757435,-1480.94,0.00024657,2]
[331950372,1720891757455,-500.0,0.00024657,2]
[331950373,1720891757476,-500.0,0.00024657,2]
[331950374,1720891757498,-500.0,0.00024657,2]
[331950375,1720891757522,-500.0,0.00024657,2]
[331950376,1720891757544,-288.30258995,0.00024658,2]
[331950377,1720891757567,-500.0,0.00024658,2]
[331950378,1720891757588,-500.0,0.00024931,2]
[331950379,1720891757612,-500.0,0.00024931,2]
[331950380,1720891757637,-500.0,0.00024931,2]
[331950381,1720891757659,-500.0,0.00024931,2]
[331950382,1720891757682,-599.0,0.00024931,2]
[331950383,1720891757708,-500.0,0.00024931,2]
[331950384,1720891757730,-500.0,0.00024931,2]
[331950385,1720891757751,-500.0,0.00024931,2]
[331950386,1720891757774,-500.0,0.00024931,2]
[331950387,1720891757794,-1129.17,0.00024931,2]
[331950388,1720891757820,-1480.94,0.00024931,2]
[331950389,1720891758206,-229.31956132,0.00025,2]
[331950390,1720891758229,-260.51865148,0.00025,2]
[331950391,1720891758251,-313.7119777,0.00025,2]
[331950392,1720891758274,-9272.6073311,0.00025,60]
[331950393,1720891758294,-500.0,0.00025205,2]
[331950394,1720891758316,-500.0,0.00025205,2]
[331950395,1720891758339,-500.0,0.00025205,2]
[331950396,1720891758361,-301.96727733,0.00025205,2]
[331950397,1720891758383,-500.0,0.00025205,2]
[331950398,1720891758405,-500.0,0.00025205,2]
[331950399,1720891758426,-1129.17,0.00025205,2]
[331950400,1720891758448,-102.80734733,0.00025205,2]
[331950401,1720891759264,-158.35036999,0.00022943,2]
[331950402,1720891759285,-326.40088376,0.00023453,2]
[331950403,1720891759305,-480.73961131,0.00024606,2]
[331950404,1720891759325,-500.0,0.00024657,2]
[331950405,1720891759346,-500.0,0.00024657,2]
[331950406,1720891759366,-500.0,0.00024657,2]
[331950407,1720891759386,-500.0,0.00024931,2]
[331950408,1720891759407,-1378.13265267,0.00025205,2]
[331950409,1720891759427,-2138.35091491,0.00025342,2]
[331950410,1720891759448,-2416.56,0.00025447,3]
[331950411,1720891759468,-288348.78018091,0.00025457,2]
[331950412,1720891759489,-31640.4790389,0.00025459,3]
[331950413,1720891759512,-500.0,0.00025479,2]
[331950414,1720891759534,-500.0,0.00025479,2]
[331950415,1720891759556,-500.0,0.00025479,2]
[331950416,1720891759577,-240.91,0.00025479,2]
[331950417,1720891759598,-1129.17,0.00025479,2]
[331950418,1720891759620,-1480.94,0.00025479,2]
[331950419,1720891759641,-306551.41541256,0.000255,2]
[331950421,1720891760245,492.98180621,0.00018899,2]
[331950422,1720891760906,154.85288975,0.00018899,2]
[331950423,1720891763377,273.37336231,0.0002,10]
[331950424,1720891766150,-372.50584874,0.00024657,2]
[331950425,1720891766171,-500.0,0.00024657,2]